bitfinex/quotes_BTCUSD_20250615
["timestamp","ask_amount","ask_price","bid_price","bid_amount"]
[1749984584538,0.05719593,105290.0,105280.0,0.85186828]
[1749984584747,0.05719593,105290.0,105280.0,0.83420095]
[1749984584953,0.05719593,105290.0,105280.0,0.85849353]
[1749984585203,0.05719593,105290.0,105280.0,0.85849442]
[1749984585421,0.05719593,105290.0,105280.0,0.85849437]
[1749984585634,0.05719593,105290.0,105280.0,0.85849408]
[1749984585844,0.05719593,105290.0,105280.0,0.85186866]
[1749984586044,0.06669269,105290.0,105280.0,0.85849403]
[1749984586255,0.06669269,105290.0,105280.0,0.83420095]
[1749984586698,0.06669269,105290.0,105280.0,0.85849373]
[1749984586934,0.06669278,105290.0,105280.0,0.83420095]
[1749984587160,0.08568729,105290.0,105280.0,0.86780595]
[1749984587384,0.0761899,105290.0,105280.0,0.86246984]
[1749984587593,0.0761899,105290.0,105280.0,0.88013631]
[1749984587826,0.0856872,105290.0,105280.0,0.88676139]
[1749984588042,0.0856872,105290.0,105280.0,0.86246984]
[1749984588269,0.0856872,105290.0,105280.0,0.88676196]
[1749984588484,0.0856872,105290.0,105280.0,0.8691319]
[1749984588932,0.0856872,105290.0,105280.0,0.86913185]
[1749984589188,0.0856872,105290.0,105280.0,0.88689739]
[1749984589412,0.0856872,105290.0,105280.0,0.66539909]
[1749984589625,0.09518459,105290.0,105280.0,0.86913178]
[1749984589854,0.10468207,105290.0,105280.0,0.88023503]
[1749984590079,0.10468207,105290.0,105280.0,0.88689704]
[1749984590296,0.10468207,105290.0,105280.0,0.86246984]
[1749984590478,0.10468279,105290.0,105280.0,0.88709558]
[1749984590723,0.10468279,105290.0,105280.0,0.8626681]
[1749984590941,0.10468279,105290.0,105280.0,0.88043354]
[1749984591155,0.10468279,105290.0,105280.0,0.88043409]
[1749984591372,0.10468279,105290.0,105280.0,0.88709633]
[1749984591824,0.27563993,105290.0,105280.0,0.69505394]
[1749984592045,0.27563993,105290.0,105280.0,0.84363215]
[1749984592290,0.27563993,105290.0,105280.0,0.86139746]
[1749984592504,0.27563993,105290.0,105280.0,0.87755766]
[1749984592715,0.27563993,105290.0,105280.0,0.86262819]
[1749984592968,0.27563993,105290.0,105280.0,0.86929052]
[1749984593193,0.27563993,105290.0,105280.0,0.85767719]
[1749984593416,0.08568837,105290.0,105280.0,0.8643395]
[1749984593636,0.08568837,105290.0,105280.0,0.86433895]
[1749984593832,0.08568837,105290.0,105280.0,0.83991096]
[1749984594086,0.0761908,105290.0,105280.0,0.87383718]
[1749984594302,0.0761908,105290.0,105280.0,0.87383692]
[1749984594515,0.0761908,105290.0,105280.0,0.87383718]
[1749984594758,0.04159593,105290.0,105280.0,0.9699864]
[1749984594972,0.04159593,105290.0,105280.0,0.96998651]
[1749984595187,0.04159593,105290.0,105280.0,0.87375742]
[1749984595188,0.05109269,105290.0,105280.0,0.87375742]
[1749984595405,0.06058954,105290.0,105280.0,0.87375635]
[1749984595623,0.06058954,105290.0,105280.0,0.86709387]
[1749984595841,0.06058954,105290.0,105280.0,0.87375579]
[1749984596070,0.05109269,105290.0,105280.0,0.8493288]
[1749984596286,0.05109269,105290.0,105280.0,0.8559907]
[1749984596509,0.05109269,105290.0,105280.0,0.8493288]
[1749984596734,0.05109269,105290.0,105280.0,0.86709459]
[1749984596954,0.05109269,105290.0,105280.0,0.87375679]
[1749984597169,0.05109269,105290.0,105280.0,0.87375692]
[1749984597395,0.02519593,105290.0,105280.0,0.85599114]
[1749984597829,0.02519593,105290.0,105280.0,0.87375681]
[1749984598043,0.02519593,105290.0,105280.0,0.91144013]
[1749984598261,0.02519593,105290.0,105280.0,0.8493288]
[1749984598478,0.02519593,105290.0,105280.0,0.89367496]
[1749984598703,0.02519593,105290.0,105280.0,0.8737565]
[1749984598918,0.02519593,105290.0,105280.0,0.87375659]
[1749984599132,0.02519593,105290.0,105280.0,0.85599093]
[1749984599358,0.02519593,105290.0,105280.0,0.8493288]
[1749984599568,0.02519593,105290.0,105280.0,0.87375458]
[1749984599782,0.02519593,105290.0,105280.0,0.85599031]
[1749984600015,0.02519593,105290.0,105280.0,0.87375502]
[1749984600225,0.02519593,105290.0,105280.0,0.87375561]
[1749984600438,0.02519593,105290.0,105280.0,0.91143996]
[1749984600710,0.02519593,105290.0,105280.0,0.91143997]
[1749984600922,0.02519593,105290.0,105280.0,1.01366221]
[1749984601131,0.02519593,105290.0,105280.0,0.92417459]
[1749984601344,0.02519593,105290.0,105280.0,0.94193874]
[1749984601561,0.02519593,105290.0,105280.0,0.92417452]
[1749984601775,0.02519593,105290.0,105280.0,0.94193914]
[1749984602003,0.02519593,105290.0,105280.0,0.90425523]
[1749984602449,0.02519593,105290.0,105280.0,0.8864909]
[1749984602666,0.02519593,105290.0,105280.0,0.8864907]
[1749984602883,0.02519593,105290.0,105280.0,0.8798288]
[1749984603107,0.02519593,105290.0,105280.0,0.89759393]
[1749984603331,0.02519593,105290.0,105280.0,0.90425586]
[1749984603545,0.02519593,105290.0,105280.0,0.90425589]
[1749984603776,0.02519593,105290.0,105280.0,0.90425593]
[1749984603997,0.02519593,105290.0,105280.0,0.89759401]
[1749984604219,0.02519593,105290.0,105280.0,0.8864908]
[1749984604664,0.02519593,105290.0,105280.0,0.8975941]
[1749984604891,0.02519593,105290.0,105280.0,0.88649078]
[1749984605158,0.02519593,105290.0,105280.0,0.94193935]
[1749984605398,0.02519593,105290.0,105280.0,0.93527729]
[1749984605611,0.02519593,105290.0,105280.0,0.94193872]
[1749984605834,0.02519593,105290.0,105280.0,0.9419388]
[1749984606055,0.02519593,105290.0,105280.0,0.94193894]
[1749984606259,0.02519593,105290.0,105280.0,0.94193898]
[1749984606526,0.02519593,105290.0,105280.0,0.94193891]
[1749984606728,0.02519593,105290.0,105280.0,0.89759311]
[1749984606949,0.02519593,105290.0,105280.0,0.88649086]
[1749984607167,0.02519593,105290.0,105280.0,0.90425609]
[1749984607377,0.02519593,105290.0,105280.0,0.8798288]
[1749984607561,0.02519593,105290.0,105280.0,0.92417488]
[1749984607826,0.02519593,105290.0,105280.0,0.94193991]
[1749984608040,0.02519593,105290.0,105280.0,0.94849325]
[1749984608321,0.02519593,105290.0,105280.0,0.99440854]
[1749984608551,0.02519593,105290.0,105280.0,0.96998254]
[1749984608775,0.02519593,105290.0,105280.0,0.95671971]
[1749984608998,0.02519593,105290.0,105280.0,0.95671965]
[1749984609213,0.02519593,105290.0,105280.0,0.94028173]
[1749984609429,0.02519593,105290.0,105280.0,0.96039295]
[1749984609658,0.02519593,105290.0,105280.0,0.96035295]
[1749984609876,0.02519593,105290.0,105280.0,0.98477472]
[1749984610085,0.02519593,105290.0,105280.0,0.98477451]
[1749984610269,0.02519593,105290.0,105280.0,0.96035295]
[1749984610510,0.02519593,105290.0,105280.0,0.98477511]
[1749984610727,0.02519593,105290.0,105280.0,0.9670135]
[1749984611146,0.02519593,105290.0,105280.0,0.96035295]
[1749984611361,0.02519593,105290.0,105280.0,0.95399553]
[1749984611577,0.02519593,105290.0,105280.0,0.93623357]
[1749984611793,0.02519593,105290.0,105280.0,0.94733469]
[1749984612011,0.02519593,105290.0,105280.0,0.72629275]
[1749984612237,0.02519593,105290.0,105280.0,0.93279459]
[1749984612449,0.02519593,105290.0,105280.0,0.85848441]
[1749984612668,0.02519593,105290.0,105280.0,0.86514649]
[1749984612859,0.02519593,105290.0,105280.0,0.86514665]
[1749984613127,0.02519593,105290.0,105280.0,0.93942063]
[1749984613352,0.02519593,105290.0,105280.0,0.92165442]
[1749984613574,0.02519593,105290.0,105280.0,0.93941959]
[1749984613797,0.0953847,105290.0,105280.0,0.87620962]
[1749984614026,0.0953847,105290.0,105280.0,0.89510894]
[1749984614248,0.0953847,105290.0,105280.0,0.90460755]
[1749984614469,0.0953847,105290.0,105280.0,0.88687974]
[1749984614701,0.07639037,105290.0,105280.0,0.91131065]
[1749984614916,0.07548972,105290.0,105280.0,0.91131019]
[1749984615131,0.07548972,105290.0,105280.0,0.91130994]
[1749984615358,0.08498693,105290.0,105280.0,0.89354252]
[1749984615799,0.08498693,105290.0,105280.0,0.91131046]
[1749984616016,0.09448423,105290.0,105280.0,0.91131115]
[1749984616231,0.10398162,105290.0,105280.0,0.89354394]
[1749984616469,0.10398162,105290.0,105280.0,0.89354431]
[1749984616685,0.10398162,105290.0,105280.0,0.88687974]
[1749984617133,0.10398162,105290.0,105280.0,0.89354442]
[1749984617325,0.10398162,105290.0,105280.0,0.84900759]
[1749984617572,0.10398162,105290.0,105280.0,0.89354469]
[1749984617831,0.09448423,105290.0,105280.0,0.85567256]
[1749984618032,0.10398162,105290.0,105280.0,0.85567286]
[1749984618247,0.10398162,105290.0,105280.0,0.70059277]
[1749984618490,0.2939339,105290.0,105280.0,0.82997182]
[1749984618694,0.08498783,105290.0,105280.0,0.85563271]
[1749984618902,0.08498783,105290.0,105280.0,0.8584445]
[1749984619125,0.08498783,105290.0,105280.0,0.89351155]
[1749984619338,0.08498783,105290.0,105280.0,0.86510886]
[1749984619561,0.09448531,105290.0,105280.0,0.8584445]
[1749984619790,0.28443687,105290.0,105280.0,0.86785128]
[1749984620007,0.09448531,105290.0,105280.0,0.85561053]
[1749984620216,0.09448531,105290.0,105280.0,0.87734911]
[1749984620427,0.09448531,105290.0,105280.0,0.88401349]
[1749984620639,0.09448531,105290.0,105280.0,0.87734911]
[1749984621070,0.09448531,105290.0,105280.0,0.884014]
[1749984621262,0.09448531,105290.0,105280.0,0.88401395]
[1749984621540,0.28443687,105290.0,105280.0,0.8745161]
[1749984621803,0.28443687,105290.0,105280.0,0.88401376]
[1749984622055,0.28443687,105290.0,105280.0,0.89351169]
[1749984622313,0.08498783,105290.0,105280.0,0.89351122]
[1749984622573,0.08498783,105290.0,105280.0,0.88684658]
[1749984623112,0.28443687,105290.0,105280.0,0.66299316]
[1749984623297,0.09448567,105290.0,105280.0,0.83951678]
[1749984623752,0.09448567,105290.0,105280.0,0.84618184]
[1749984624009,0.09448567,105290.0,105280.0,0.84618297]
[1749984624217,0.09448567,105290.0,105280.0,0.88401519]
[1749984624468,0.09448567,105290.0,105280.0,0.88401559]
[1749984624686,0.27493975,105290.0,105280.0,0.46314216]
[1749984624906,0.27493975,105290.0,105280.0,0.82714918]
[1749984625121,0.27493975,105290.0,105280.0,0.82714921]
[1749984625336,0.27493975,105290.0,105280.0,0.82714956]
[1749984625553,0.27493975,105290.0,105280.0,0.79874714]
[1749984625769,0.27493975,105290.0,105280.0,0.79874751]
[1749984626229,0.27493975,105290.0,105280.0,0.79207838]
[1749984626447,0.27493975,105290.0,105280.0,0.79874795]
[1749984626669,0.30344538,105290.0,105280.0,0.79874795]
[1749984626891,0.30344538,105290.0,105280.0,0.79874748]
[1749984627109,0.30344538,105290.0,105280.0,0.7987473]
[1749984627358,0.30344538,105290.0,105280.0,0.7892491]
[1749984627582,0.30344538,105290.0,105280.0,0.80157686]
[1749984628048,0.30344538,105290.0,105280.0,0.808246]
[1749984628285,0.30344538,105290.0,105280.0,0.81774411]
[1749984628525,0.30344538,105290.0,105280.0,0.81107497]
[1749984628735,0.30344538,105290.0,105280.0,0.81774453]
[1749984628960,0.30344538,105290.0,105280.0,0.81774464]
[1749984629186,0.30344538,105290.0,105280.0,0.81107497]
[1749984629415,0.30344538,105290.0,105280.0,0.8177446]
[1749984629642,0.0631985,105290.0,105280.0,0.82057281]
[1749984630096,0.07269562,105290.0,105280.0,0.82724219]
[1749984630315,0.07269562,105290.0,105280.0,0.82057281]
[1749984630559,0.03469278,105290.0,105280.0,0.85327281]
[1749984631273,0.02519593,105290.0,105280.0,0.87772534]
[1749984631564,0.02519593,105290.0,105280.0,0.90612745]
[1749984631836,0.02519593,105290.0,105280.0,0.85994162]
[1749984632087,0.03469278,105290.0,105280.0,0.87772481]
[1749984632294,0.02519593,105290.0,105280.0,0.8777245]
[1749984632512,0.02519593,105290.0,105280.0,0.87105539]
[1749984632725,0.04418972,105290.0,105280.0,0.87772406]
[1749984632944,0.03469269,105290.0,105280.0,0.87772412]
[1749984633167,0.04418954,105290.0,105280.0,0.87772403]
[1749984633387,0.04418954,105290.0,105280.0,0.87772413]
[1749984633604,0.04418954,105290.0,105280.0,0.85327281]
[1749984633853,0.04418954,105290.0,105280.0,0.8599414]
[1749984634110,0.04418954,105290.0,105280.0,0.87772498]
[1749984634388,0.04418954,105290.0,105280.0,0.85994158]
[1749984634595,0.04418954,105290.0,105280.0,0.8599414]
[1749984634817,0.02519593,105290.0,105280.0,0.87772487]
[1749984635050,0.03469269,105290.0,105280.0,0.87772427]
[1749984635272,0.03469269,105290.0,105280.0,0.85994137]
[1749984635482,0.03469269,105290.0,105280.0,0.87772446]
[1749984635705,0.04418954,105290.0,105280.0,0.87772444]
[1749984635927,0.04418954,105290.0,105280.0,0.87772466]
[1749984636170,0.04418954,105290.0,105280.0,0.87772453]
[1749984636401,0.04418954,105290.0,105280.0,0.87772534]
[1749984636645,0.04418954,105290.0,105280.0,0.85994145]
[1749984636852,0.04418954,105290.0,105280.0,0.87772441]
[1749984637071,0.04418954,105290.0,105280.0,0.87772433]
[1749984637478,0.05368648,105290.0,105280.0,0.87772414]
[1749984637740,0.05368648,105290.0,105280.0,0.85327281]
[1749984637954,0.02519593,105290.0,105280.0,0.85994146]
[1749984638165,0.03469269,105290.0,105280.0,0.87772548]
[1749984638377,0.03469269,105290.0,105280.0,0.87772372]
[1749984638593,0.03469269,105290.0,105280.0,0.8777237]
[1749984638855,0.03469269,105290.0,105280.0,0.87772365]
[1749984639068,0.03469269,105290.0,105280.0,0.87772512]
[1749984639279,0.03469269,105290.0,105280.0,0.87772525]
[1749984639490,0.02519593,105290.0,105280.0,0.87772522]
[1749984639710,0.02519593,105290.0,105280.0,0.85327281]
[1749984639920,0.02519593,105290.0,105280.0,0.87772399]
[1749984640164,0.02519593,105290.0,105280.0,0.89945598]
[1749984640383,0.02519593,105290.0,105280.0,0.88834314]
[1749984640384,0.03469269,105290.0,105280.0,0.88834314]
[1749984640610,0.03469269,105290.0,105280.0,0.90612384]
[1749984640858,0.04418954,105290.0,105280.0,0.90612365]
[1749984641075,0.04418954,105290.0,105280.0,0.90612366]
[1749984641297,0.04418954,105290.0,105280.0,0.90612363]
[1749984641524,0.03469269,105290.0,105280.0,0.89945587]
[1749984641747,0.03469269,105290.0,105280.0,0.89945585]
[1749984641966,0.03469269,105290.0,105280.0,0.90612357]
[1749984642191,0.03469269,105290.0,105280.0,0.89945589]
[1749984642405,0.03469269,105290.0,105280.0,0.90612384]
[1749984642621,0.03469269,105290.0,105280.0,0.8994561]
[1749984642854,0.03469269,105290.0,105280.0,0.89945604]
[1749984643076,0.03469269,105290.0,105280.0,0.88834317]
[1749984643564,0.03469269,105290.0,105280.0,0.89945608]
[1749984643792,0.03469269,105290.0,105280.0,0.90612389]
[1749984643993,0.03469269,105290.0,105280.0,0.90612371]
[1749984644207,0.02519593,105290.0,105280.0,0.89945623]
[1749984644415,0.03469278,105290.0,105280.0,0.89945668]
[1749984644853,0.03469278,105290.0,105280.0,0.90612482]
[1749984645057,0.03469278,105290.0,105280.0,0.88834359]
[1749984645267,0.03469278,105290.0,105280.0,0.90612521]
[1749984645268,0.02519593,105290.0,105280.0,0.90612521]
[1749984645493,0.03469269,105290.0,105280.0,0.90612521]
[1749984645709,0.03469269,105290.0,105280.0,0.88834312]
[1749984645934,0.04418954,105290.0,105280.0,0.90612357]
[1749984646147,0.04418954,105290.0,105280.0,0.90612423]
[1749984646363,0.04418954,105290.0,105280.0,0.88834312]
[1749984646551,0.03469269,105290.0,105280.0,0.89945592]
[1749984646812,0.04418954,105290.0,105280.0,0.89945582]
[1749984647033,0.04418954,105290.0,105280.0,0.9061234]
[1749984647267,0.04418954,105290.0,105280.0,0.88167544]
[1749984647490,0.04418954,105290.0,105280.0,0.89945578]
[1749984647698,0.04418954,105290.0,105280.0,0.90612354]
[1749984648128,0.04418954,105290.0,105280.0,0.89945588]
[1749984648333,0.04418954,105290.0,105280.0,0.90612334]
[1749984648541,0.04418954,105290.0,105280.0,0.88834283]
[1749984648750,0.04418954,105290.0,105280.0,0.8994552]
[1749984649198,0.04418954,105290.0,105280.0,0.88167544]
[1749984649423,0.04418954,105290.0,105280.0,0.91954759]
[1749984649668,0.04418954,105290.0,105280.0,0.88167544]
[1749984650104,0.04418954,105290.0,105280.0,0.89945621]
[1749984650325,0.03469269,105290.0,105280.0,0.89945621]
[1749984650576,0.03469269,105290.0,105280.0,0.89945618]
[1749984650805,0.04418963,105290.0,105280.0,0.88834322]
[1749984651023,0.03469269,105290.0,105280.0,0.88167544]
[1749984651223,0.03469269,105290.0,105280.0,0.88834325]
[1749984651732,0.03469269,105290.0,105280.0,0.89945638]
[1749984651960,0.03469269,105290.0,105280.0,0.90612588]
[1749984652175,0.03469269,105290.0,105280.0,0.89945752]
[1749984652388,0.03469269,105290.0,105280.0,0.88834373]
[1749984652609,0.02519593,105290.0,105280.0,0.899457]
[1749984652791,0.02519593,105290.0,105280.0,0.90612503]
[1749984653084,0.03469269,105290.0,105280.0,0.90612504]
[1749984653293,0.03469269,105290.0,105280.0,0.90612503]
[1749984653509,0.03469269,105290.0,105280.0,0.88834354]
[1749984653739,0.03469269,105290.0,105280.0,0.90612646]
[1749984653945,0.03469269,105290.0,105280.0,0.8883439]
[1749984654181,0.03469269,105290.0,105280.0,0.88834384]
[1749984654385,0.03469269,105290.0,105280.0,0.90612666]
[1749984654592,0.03469269,105290.0,105280.0,0.9061266]
[1749984654800,0.03469269,105290.0,105280.0,0.88834391]
[1749984655009,0.03469269,105290.0,105280.0,0.8994584]
[1749984655230,0.03469269,105290.0,105280.0,0.88167544]
[1749984655478,0.03469269,105290.0,105280.0,0.89945889]
[1749984655688,0.03469269,105290.0,105280.0,0.88167544]
[1749984655918,0.03469269,105290.0,105280.0,0.90612774]
[1749984656169,0.03469269,105290.0,105280.0,0.90612797]
[1749984656402,0.03469269,105290.0,105280.0,0.89945927]
[1749984656691,0.03469269,105290.0,105280.0,0.89945911]
[1749984656893,0.03469269,105290.0,105280.0,0.89945948]
[1749984657147,0.03469269,105290.0,105280.0,0.90611781]
[1749984657383,0.03469269,105290.0,105280.0,0.90611837]
[1749984657629,0.03469269,105290.0,105280.0,0.90611814]
[1749984657846,0.03469269,105290.0,105280.0,0.88834166]
[1749984658087,0.03469269,105290.0,105280.0,0.88167544]
[1749984658304,0.03469269,105290.0,105280.0,0.90611815]
[1749984658548,0.03469269,105290.0,105280.0,0.90611819]
[1749984658758,0.03469269,105290.0,105280.0,0.88167544]
[1749984658986,0.03469269,105290.0,105280.0,0.90611821]
[1749984659236,0.03469269,105290.0,105280.0,0.89945174]
[1749984659460,0.03469269,105290.0,105280.0,0.89945203]
[1749984659691,0.03469269,105290.0,105280.0,0.88834174]
[1749984659916,0.03469269,105290.0,105280.0,0.90611825]
[1749984660163,0.03469269,105290.0,105280.0,0.89945199]
[1749984660377,0.03469269,105290.0,105280.0,0.88834174]
[1749984660604,0.02519593,105290.0,105280.0,0.88834174]
[1749984660850,0.03469269,105290.0,105280.0,0.89945308]
[1749984661083,0.03469269,105290.0,105280.0,0.88834208]
[1749984661084,0.02519593,105290.0,105280.0,0.88834208]
[1749984661300,0.02519593,105290.0,105280.0,0.8883419]
[1749984661527,0.02519593,105290.0,105280.0,0.88167544]
[1749984661838,0.02519593,105290.0,105280.0,0.88834201]
[1749984661934,0.02519593,105290.0,105280.0,0.89945325]
[1749984662165,0.02519593,105290.0,105280.0,0.93732565]
[1749984662409,0.02519593,105290.0,105280.0,0.94399246]
[1749984662624,0.02519593,105290.0,105280.0,0.9439925]
[1749984662855,0.02519593,105290.0,105280.0,0.92621431]
[1749984663081,0.03469278,105290.0,105280.0,0.91954759]
[1749984663310,0.03469278,105290.0,105280.0,0.94400352]
[1749984663543,0.03469287,105290.0,105280.0,0.93733425]
[1749984663783,0.02519593,105290.0,105280.0,0.91954759]
[1749984664024,0.02519593,105290.0,105280.0,0.92621759]
[1749984664248,0.02519593,105290.0,105280.0,0.94400424]
[1749984664483,0.02519593,105290.0,105280.0,0.94400738]
[1749984664712,0.02519593,105290.0,105280.0,0.92621846]
[1749984664964,0.02519593,105290.0,105280.0,0.92621962]
[1749984665173,0.03469278,105290.0,105280.0,0.92621991]
[1749984665405,0.03469278,105290.0,105280.0,0.92622018]
[1749984665659,0.02519593,105290.0,105280.0,0.94401368]
[1749984665904,0.02519593,105290.0,105280.0,0.94401359]
[1749984666117,0.03469269,105290.0,105280.0,0.91954759]
[1749984666348,0.03469269,105290.0,105280.0,0.94401326]
[1749984666568,0.03469269,105290.0,105280.0,0.94401321]
[1749984666777,0.03469269,105290.0,105280.0,0.92622003]
[1749984667038,0.03469269,105290.0,105280.0,0.94401303]
[1749984667272,0.03469269,105290.0,105280.0,0.93734008]
[1749984667506,0.03469269,105290.0,105280.0,0.94401047]
[1749984667739,0.03469269,105290.0,105280.0,0.9373347]
[1749984667979,0.03469269,105290.0,105280.0,0.94400332]
[1749984668242,0.03469269,105290.0,105280.0,0.94400374]
[1749984668460,0.03469269,105290.0,105280.0,0.91954759]
[1749984668683,0.03469269,105290.0,105280.0,0.94400291]
[1749984668897,0.03469269,105290.0,105280.0,0.92621732]
[1749984669119,0.03469269,105290.0,105280.0,0.94400316]
[1749984669341,0.03469269,105290.0,105280.0,0.92621724]
[1749984669607,0.03469269,105290.0,105280.0,0.94400299]
[1749984669845,0.03469269,105290.0,105280.0,0.94400314]
[1749984670058,0.03469269,105290.0,105280.0,0.93733317]
[1749984670297,0.03469269,105290.0,105280.0,0.94399865]
[1749984670515,0.03469269,105290.0,105280.0,0.94399817]
[1749984670725,0.03469269,105290.0,105280.0,0.94399794]
[1749984670934,0.03469269,105290.0,105280.0,0.94399707]
[1749984671146,0.03469269,105290.0,105280.0,0.93732937]
[1749984671579,0.03469269,105290.0,105280.0,0.94399778]
[1749984671801,0.03469269,105290.0,105280.0,0.926216]
[1749984672022,0.03469269,105290.0,105280.0,0.94399825]
[1749984672244,0.03469269,105290.0,105280.0,0.94399847]
[1749984672485,0.03469269,105290.0,105280.0,0.9440003]
[1749984672720,0.03469269,105290.0,105280.0,0.94400074]
[1749984672970,0.03469269,105290.0,105280.0,0.95511701]
[1749984673221,0.03469269,105290.0,105280.0,0.96178624]
[1749984673467,0.03469269,105290.0,105280.0,0.9373323]
[1749984673695,0.03469269,105290.0,105280.0,0.96178697]
[1749984673915,0.03469269,105290.0,105280.0,0.9373323]
[1749984674135,0.03469269,105290.0,105280.0,0.94400186]
[1749984674357,0.03469269,105290.0,105280.0,0.95511789]
[1749984674580,0.03469269,105290.0,105280.0,0.94400173]
[1749984674802,0.04418963,105290.0,105280.0,0.95511746]
[1749984675019,0.03469269,105290.0,105280.0,0.9617868]
[1749984675265,0.03469269,105290.0,105280.0,0.94400171]
[1749984675488,0.03469269,105290.0,105280.0,0.96178678]
[1749984675702,0.03469269,105290.0,105280.0,0.96178671]
[1749984675938,0.03469269,105290.0,105280.0,0.96178724]
[1749984676167,0.03469269,105290.0,105280.0,0.94400183]
[1749984676385,0.03469269,105290.0,105280.0,0.9373323]
[1749984676621,0.03469269,105290.0,105280.0,0.9617872]
[1749984676836,0.03469269,105290.0,105280.0,0.96178662]
[1749984677047,0.03469269,105290.0,105280.0,0.95511726]
[1749984677329,0.03469269,105290.0,105280.0,0.9617866]
[1749984677556,0.03469269,105290.0,105280.0,0.96178653]
[1749984677782,0.03469269,105290.0,105280.0,0.96178652]
[1749984678010,0.03469269,105290.0,105280.0,0.9373323]
[1749984678243,0.03469269,105290.0,105280.0,0.94400163]
[1749984678469,0.03469269,105290.0,105280.0,0.96178653]
[1749984678673,0.03469269,105290.0,105280.0,0.9551172]
[1749984678885,0.03469269,105290.0,105280.0,0.9373323]
[1749984679317,0.03469269,105290.0,105280.0,0.94400163]
[1749984679524,0.04418963,105290.0,105280.0,0.94416652]
[1749984679958,0.03469269,105290.0,105280.0,0.90196196]
[1749984680172,0.04418963,105290.0,105280.0,0.91974685]
[1749984680392,0.04418963,105290.0,105280.0,0.92641618]
[1749984680603,0.04418963,105290.0,105280.0,0.90863129]
[1749984680813,0.04418963,105290.0,105280.0,0.91974685]
[1749984681036,0.04418963,105290.0,105280.0,0.92641618]
[1749984681235,0.04418963,105290.0,105280.0,0.91974685]
[1749984681443,0.04418963,105290.0,105280.0,0.90863129]
[1749984681922,0.04418963,105290.0,105280.0,0.92641618]
[1749984682392,0.04418963,105290.0,105280.0,0.9197468]
[1749984682612,0.04418963,105290.0,105280.0,0.90196196]
[1749984682828,0.04418963,105290.0,105280.0,0.9197468]
[1749984683043,0.04418963,105290.0,105280.0,0.92641611]
[1749984683261,0.04418963,105290.0,105280.0,0.90863127]
[1749984683470,0.04418963,105290.0,105280.0,0.90196196]
[1749984683703,0.04418963,105290.0,105280.0,0.9264161]
[1749984684139,0.04418963,105290.0,105280.0,0.90863127]
[1749984684368,0.03469269,105290.0,105280.0,0.70792196]
[1749984684584,0.04418954,105290.0,105280.0,0.90334684]
[1749984684813,0.04418954,105290.0,105280.0,0.91001624]
[1749984685080,0.04418954,105290.0,105280.0,0.90116196]
[1749984685305,0.04418963,105290.0,105280.0,0.91894684]
[1749984685515,0.03469269,105290.0,105280.0,0.90783129]
[1749984685729,0.03469269,105290.0,105280.0,0.92561617]
[1749984685946,0.03469269,105290.0,105280.0,0.90783129]
[1749984686158,0.03469269,105290.0,105280.0,0.90116196]
[1749984686371,0.03469269,105290.0,105280.0,0.91894684]
[1749984686584,0.03469269,105290.0,105280.0,0.92561617]
[1749984686796,0.03469269,105290.0,105280.0,0.9256161]
[1749984687007,0.03469269,105290.0,105280.0,0.92561601]
[1749984687217,0.03469269,105290.0,105280.0,0.9256169]
[1749984687430,0.03469269,105290.0,105280.0,0.9256173]
[1749984687679,0.03469269,105290.0,105280.0,0.90116196]
[1749984687889,0.04418963,105290.0,105280.0,0.90783165]
[1749984688123,0.03469269,105290.0,105280.0,0.91894769]
[1749984688335,0.04418963,105290.0,105280.0,0.90783155]
[1749984688548,0.04418963,105290.0,105280.0,0.92561722]
[1749984688767,0.03469269,105290.0,105280.0,0.90783159]
[1749984689017,0.03469269,105290.0,105280.0,0.90116196]
[1749984689239,0.04418954,105290.0,105280.0,0.92561655]
[1749984689764,0.04418954,105290.0,105280.0,0.90783139]
[1749984689985,0.04418954,105290.0,105280.0,0.92561651]
[1749984690207,0.04418954,105290.0,105280.0,0.92561629]
[1749984690423,0.04418954,105290.0,105280.0,0.91894692]
[1749984690665,0.04418954,105290.0,105280.0,0.92561627]
[1749984690877,0.04418954,105290.0,105280.0,0.92561621]
[1749984691096,0.04418954,105290.0,105280.0,0.90116196]
[1749984691306,0.04418954,105290.0,105280.0,0.92561615]
[1749984691552,0.04418954,105290.0,105280.0,0.92561644]
[1749984691763,0.04418954,105290.0,105280.0,0.92561643]
[1749984691988,0.04418954,105290.0,105280.0,0.91894657]
[1749984692195,0.04418954,105290.0,105280.0,0.90783119]
[1749984692412,0.04418954,105290.0,105280.0,0.90116196]
[1749984692620,0.04418954,105290.0,105280.0,0.92561581]
[1749984692887,0.04418954,105290.0,105280.0,0.90116196]
[1749984693099,0.04418954,105290.0,105280.0,0.91894658]
[1749984693539,0.02519593,105290.0,105280.0,0.92561581]
[1749984693771,0.02519593,105290.0,105280.0,0.90783119]
[1749984693983,0.03469278,105290.0,105280.0,0.93404658]
[1749984694208,0.03469278,105290.0,105280.0,0.94071581]
[1749984694650,0.02519593,105290.0,105280.0,0.91626196]
[1749984694863,0.02519593,105290.0,105280.0,0.94071551]
[1749984695080,0.03469278,105290.0,105280.0,0.93404487]
[1749984695290,0.03469278,105290.0,105280.0,0.92293057]
[1749984695507,0.03469278,105290.0,105280.0,0.91626196]
[1749984695723,0.03469278,105290.0,105280.0,0.93404431]
[1749984695949,0.03469278,105290.0,105280.0,0.94738306]
[1749984696375,0.03469278,105290.0,105280.0,0.94738324]
[1749984696584,0.03469278,105290.0,105280.0,0.94071463]
[1749984696807,0.03469278,105290.0,105280.0,0.9473833]
[1749984697032,0.02519593,105290.0,105280.0,0.9473833]
[1749984697299,0.03469278,105290.0,105280.0,0.92959918]
[1749984697557,0.03469278,105290.0,105280.0,0.94738226]
[1749984697779,0.03469278,105290.0,105280.0,0.94738213]
[1749984698024,0.03469278,105290.0,105280.0,0.94738093]
[1749984698257,0.03469278,105290.0,105280.0,0.94738086]
[1749984698498,0.03469269,105290.0,105280.0,0.92293057]
[1749984698717,0.03469269,105290.0,105280.0,0.94738086]
[1749984698943,0.03469269,105290.0,105280.0,0.92293057]
[1749984699174,0.04418963,105290.0,105280.0,0.94738086]
[1749984699397,0.04418963,105290.0,105280.0,0.92959882]
[1749984699613,0.04418963,105290.0,105280.0,0.94071259]
[1749984699614,0.03469269,105290.0,105280.0,0.94071259]
[1749984699846,0.03469269,105290.0,105280.0,0.92293057]
[1749984700063,0.04418954,105290.0,105280.0,0.94071259]
[1749984700271,0.04418954,105290.0,105280.0,0.92959884]
[1749984700519,0.04418954,105290.0,105280.0,0.92293057]
[1749984700742,0.04418954,105290.0,105280.0,0.9473809]
[1749984700954,0.04418954,105290.0,105280.0,0.9166809]
[1749984701197,0.04418954,105290.0,105280.0,0.90981276]
[1749984701426,0.05368657,105290.0,105280.0,0.89869894]
[1749984701655,0.06318369,105290.0,105280.0,0.85415842]
[1749984701888,0.06318369,105290.0,105280.0,0.87861033]
[1749984702115,0.06318369,105290.0,105280.0,0.85415842]
[1749984702339,0.06318369,105290.0,105280.0,0.87861036]
[1749984702598,0.06318369,105290.0,105280.0,0.87861055]
[1749984702858,0.06318369,105290.0,105280.0,0.86082712]
[1749984703139,0.06318369,105290.0,105280.0,0.87861021]
[1749984703356,0.06318369,105290.0,105280.0,0.87861037]